bitfinex/quotes_SOLUSD_20240620
["timestamp","ask_amount","ask_price","bid_price","bid_amount"]
[1718899514354,2.01e-05,132.93,132.86,7.5266]
[1718899514832,2.01e-05,132.93,132.83,1.74151397]
[1718899515230,2.01e-05,132.93,132.83,9.26951397]
[1718899515724,2.01e-05,132.93,132.83,1.74151397]
[1718899515947,33.4200201,132.93,132.83,1.74151397]
[1718899516352,20.17,132.92,132.83,1.74151397]
[1718899516560,0.17,132.92,132.83,1.74151397]
[1718899516730,2.01e-05,132.93,132.83,1.74151397]
[1718899517364,2.01e-05,132.93,132.86,7.5263]
[1718899517662,2.01e-05,132.93,132.85,18.8179]
[1718899517845,2.01e-05,132.93,132.86,1.50199386]
[1718899518042,2.01e-05,132.93,132.83,1.74151397]
[1718899518440,2.01e-05,132.93,132.85,7.5272]
[1718899518638,2.01e-05,132.93,132.86,1.50295948]
[1718899518841,2.01e-05,132.93,132.84,1.50291357]
[1718899519059,2.01e-05,132.93,132.83,1.74151397]
[1718899519954,2.01e-05,132.93,132.83,20.56221397]
[1718899520146,2.01e-05,132.93,132.83,9.26981397]
[1718899520541,0.17,132.94,132.83,9.26981397]
[1718899520542,4.7680168,132.95,132.83,1.74151397]
[1718899520952,4.7680168,132.95,132.84,18.8183]
[1718899521158,4.7680168,132.95,132.85,18.8168]
[1718899521354,4.7680168,132.95,132.86,7.5263]
[1718899521697,14.72058133,132.99,132.87,37.7993]
[1718899521863,6.9369,132.99,132.93,7.5225]
[1718899522040,6.9369,133.05,132.94,45.0]
[1718899522378,6.9369,133.05,132.92,7.5229]
[1718899522542,6.9369,133.05,132.88,20.34]
[1718899522543,6.9369,133.05,132.91,7.5238]
[1718899522739,6.9369,133.05,132.92,45.0]
[1718899522943,6.9369,133.05,132.92,52.5232]
[1718899523145,6.9369,133.05,132.92,45.0]
[1718899523347,1.73582285,133.04,132.94,7.5217]
[1718899523659,6.3923,133.03,132.95,7.5214]
[1718899523847,6.3923,133.03,132.92,45.0]
[1718899523848,1.73582285,133.02,132.94,7.5218]
[1718899524047,1.73582285,133.02,132.92,45.0]
[1718899524243,1.73582285,133.02,132.76,743.0]
[1718899524244,1.73582285,133.02,132.88,7.5251]
[1718899524473,1.73582285,133.02,132.82,242.6334]
[1718899524663,21.73582285,133.02,132.89,7.5247]
[1718899524849,21.73582285,133.02,132.84,37.6371]
[1718899525041,21.73582285,133.02,132.91,7.5236]
[1718899525247,21.73582285,133.02,132.92,7.5228]
[1718899525454,21.73582285,133.02,132.9,18.811]
[1718899525655,21.73582285,133.02,132.84,60.2671]
[1718899525656,1.73582285,133.02,132.94,7.522]
[1718899525957,1.73582285,133.02,132.96,7.521]
[1718899526161,6.3923,133.03,132.95,52.5213]
[1718899526357,6.3923,133.03,133.0,7.5187]
[1718899526663,0.8245201,133.06,132.95,45.0]
[1718899526869,0.8245201,133.06,133.01,7.5178]
[1718899527178,0.8245201,133.06,133.03,7.517]
[1718899527374,0.8245201,133.06,133.01,7.518]
[1718899527573,0.8245201,133.06,133.02,45.0]
[1718899527764,0.8245201,133.06,132.98,7.5198]
[1718899528080,0.8245201,133.06,132.99,45.0]
[1718899528251,0.8245201,133.06,132.99,52.5191]
[1718899528450,0.8245201,133.06,132.99,45.0]
[1718899528662,0.8245201,133.06,133.01,7.5177]
[1718899528862,0.8245201,133.06,133.02,45.0]
[1718899529068,0.8245201,133.06,132.96,6.9369]
[1718899529349,0.8245201,133.06,132.97,45.0]
[1718899529654,0.8245201,133.06,132.95,7.5214]
[1718899530074,0.8245201,133.06,132.93,6.9369]
[1718899530379,0.17,133.05,132.93,6.9369]
[1718899530555,0.17,133.05,132.96,7.5208]
[1718899530755,0.17,133.05,132.92,18.8073]
[1718899530966,0.17,133.05,132.92,7.523]
[1718899531157,0.17,133.05,132.93,7.5223]
[1718899531361,20.17,133.05,132.89,18.8073]
[1718899531656,0.17,133.05,132.94,18.8054]
[1718899532274,0.17,133.05,132.95,45.0]
[1718899532465,0.17,133.05,132.96,7.5206]
[1718899532767,0.8245201,133.06,132.97,45.0]
[1718899532965,0.8245201,133.06,132.97,7.5202]
[1718899533170,0.8245201,133.06,133.0,7.5187]
[1718899533362,0.8245201,133.06,132.99,7.5191]
[1718899533863,0.8245201,133.06,133.0,45.0]
[1718899534058,0.8245201,133.06,132.93,18.8055]
[1718899534259,0.8245201,133.06,132.87,9.979991]
[1718899534481,0.8245201,133.06,132.9,20.0]
[1718899534955,0.8245201,133.06,132.97,7.5204]
[1718899535156,0.8245201,133.06,132.96,7.5209]
[1718899535490,13.4749,133.04,132.89,18.8073]
[1718899535666,13.4749,133.04,132.88,258.2655]
[1718899535869,0.17,133.03,132.88,258.2655]
[1718899536176,13.4749,133.04,132.88,258.2655]
[1718899536360,13.4749,133.04,132.88,294.3704]
[1718899536560,13.4749,133.04,132.9,22.63]
[1718899536785,6.538,133.04,133.01,7.5181]
[1718899537269,0.8245201,133.06,133.02,7.5176]
[1718899537856,0.8245201,133.06,133.03,52.5165]
[1718899538656,0.8245201,133.06,132.97,18.8]
[1718899538859,0.8245201,133.06,132.95,37.6056]
[1718899539056,0.8245201,133.06,132.98,37.5973]
[1718899539282,0.8245201,133.06,133.01,7.5178]
[1718899539461,0.8245201,133.06,133.02,52.5176]
[1718899539656,0.8245201,133.06,133.02,7.5175]
[1718899539860,0.8245201,133.06,133.0,7.5186]
[1718899540164,0.8245201,133.06,132.99,45.0]
[1718899540581,0.8245201,133.06,133.01,7.5181]
[1718899540776,0.8245201,133.06,133.0,7.5186]
[1718899541078,0.8245201,133.06,132.98,63.7986]
[1718899541260,0.8245201,133.06,133.02,7.5174]
[1718899541461,0.8245201,133.06,132.98,45.0]
[1718899541462,0.8245201,133.06,133.03,7.517]
[1718899541666,0.8245201,133.06,133.01,18.7955]
[1718899541882,0.8245201,133.06,132.97,0.17]
[1718899541883,0.8245201,133.06,133.02,45.0]
[1718899542360,0.8245201,133.06,132.93,28.8119]
[1718899542556,0.8245201,133.06,132.98,7.5196]
[1718899542759,0.8245201,133.06,132.96,18.8026]
[1718899542972,0.8245201,133.06,132.97,18.8]
[1718899543173,0.8245201,133.06,132.99,7.5192]
[1718899543481,0.8245201,133.06,132.97,18.8]
[1718899543674,0.8245201,133.06,133.0,7.5185]
[1718899543985,0.8245201,133.06,133.02,7.5175]
[1718899544174,0.8245201,133.06,133.01,45.0]
[1718899544371,0.8245201,133.06,133.0,63.7956]
[1718899544576,0.8245201,133.06,133.02,7.5173]
[1718899544769,0.8245201,133.06,133.03,52.517]
[1718899544967,0.8245201,133.06,133.03,45.0]
[1718899545169,0.8245201,133.06,133.04,7.5164]
[1718899545361,0.8245201,133.06,133.05,45.0]
[1718899545561,0.8245201,133.06,133.05,52.5159]
[1718899546979,0.8245201,133.06,133.05,45.0]
[1718899547179,0.8245201,133.06,133.04,45.0]
[1718899547380,0.8245201,133.06,133.04,52.5162]
[1718899547573,0.8245201,133.06,133.05,7.5159]
[1718899547885,0.8245201,133.06,133.05,52.5159]
[1718899548087,0.8245201,133.06,133.05,71.3058]
[1718899548463,6.28388768,133.2,133.05,64.2999]
[1718899548688,6.28388768,133.2,133.07,7.5144]
[1718899548979,20.0,133.19,133.08,45.0]
[1718899549378,20.0,133.18,133.03,18.7926]
[1718899549681,40.3569,133.22,133.05,7.5157]
[1718899549858,40.3569,133.22,133.02,37.7566]
[1718899549859,20.0,133.21,133.04,7.5162]
[1718899550058,33.42,133.18,133.03,7.517]
[1718899550281,33.42,133.18,133.02,7.5174]
[1718899550467,33.42,133.18,133.01,242.6334]
[1718899550468,20.0,133.17,133.01,242.6334]
[1718899550889,20.17,133.16,133.06,7.515]
[1718899551063,0.17,133.16,133.06,7.515]
[1718899551263,0.17,133.16,133.04,7.5161]
[1718899551482,0.17,133.16,133.01,242.6334]
[1718899551483,6.0334,133.15,133.01,261.4286]
[1718899551687,0.17,133.14,133.02,65.51]
[1718899551869,0.17,133.14,133.02,84.3028]
[1718899552069,6.0334,133.15,133.07,7.5148]
[1718899552267,6.0334,133.15,133.03,18.7915]
[1718899552478,0.17,133.14,133.05,7.5159]
[1718899552679,6.0334,133.15,133.05,7.5156]
[1718899552870,6.0334,133.15,133.06,45.0]
[1718899553573,6.0334,133.15,133.05,45.0]
[1718899553768,6.0334,133.15,133.07,7.5145]
[1718899553969,6.0334,133.15,133.08,45.0]
[1718899554982,6.0334,133.15,133.09,7.5132]
[1718899555163,6.0334,133.15,133.1,45.0]
[1718899555669,6.6582,133.2,133.11,7.5122]
[1718899555872,6.6582,133.2,133.12,52.5119]
[1718899556066,6.6582,133.2,133.12,45.0]
[1718899556285,6.6582,133.2,133.13,7.5114]
[1718899556467,6.6582,133.2,133.14,45.0]
[1718899556799,6.6582,133.2,133.14,52.5105]
[1718899557094,6.6582,133.2,133.14,45.0]
[1718899557274,6.6582,133.2,133.14,52.5108]
[1718899557884,6.6582,133.2,133.16,7.5096]
[1718899558087,6.6582,133.2,133.17,45.0]
[1718899558464,6.6582,133.24,133.17,45.0]
[1718899558672,6.6582,133.24,133.19,7.508]
[1718899558983,6.6582,133.32,133.2,52.5072]
[1718899559180,12.60467359,133.32,133.21,7.5069]
[1718899559380,6.6582,133.32,133.22,45.0]
[1718899560399,6.6582,133.32,133.23,7.5055]
[1718899560573,6.6582,133.32,133.24,45.0]
[1718899560766,6.6582,133.32,133.23,7.5055]
[1718899560993,6.6582,133.32,133.24,45.0]
[1718899561491,6.6582,133.32,133.27,7.5034]
[1718899561699,6.6582,133.32,133.28,45.0]
[1718899561868,6.6582,133.32,133.24,45.0]
[1718899562070,6.6582,133.32,133.19,7.5077]
[1718899562274,6.6582,133.32,133.17,7.5091]
[1718899562489,33.42,133.3,133.17,7.5091]
[1718899562696,33.42,133.3,133.19,7.5077]
[1718899562877,0.17,133.29,133.17,7.5088]
[1718899563074,20.17,133.29,133.16,7.5095]
[1718899563269,20.0,133.29,133.17,7.5087]
[1718899563473,6.6582,133.32,133.13,242.6334]
[1718899563691,20.0,133.31,133.2,7.5074]
[1718899563874,6.6582,133.32,133.16,18.773]
[1718899563875,6.6582,133.32,133.22,7.5062]
[1718899564075,6.6582,133.32,133.23,7.5057]
[1718899564290,6.6582,133.32,133.22,7.5063]
[1718899564489,6.6582,133.32,133.16,22.63]
[1718899564680,6.6582,133.32,133.18,22.63]
[1718899564872,6.6582,133.32,133.25,7.5044]
[1718899565279,6.6582,133.32,133.26,45.0]
[1718899565679,6.6582,133.32,133.25,45.0]
[1718899566175,6.6582,133.32,133.26,0.34]
[1718899566504,2.5073394,133.33,133.26,19.0991]
[1718899566796,2.5073394,133.33,133.3,7.5018]
[1718899567099,2.5073394,133.33,133.31,45.0]
[1718899567477,2.5073394,133.33,133.32,7.5007]
[1718899567679,2.5073394,133.33,133.32,52.5007]
[1718899568083,2.5073394,133.33,133.32,53.0107]
[1718899568603,6.6396,133.4,133.36,7.4979]
[1718899569399,30.8871051,133.46,133.32,45.51]
[1718899569583,30.8871051,133.46,133.38,7.4972]
[1718899570096,30.8871051,133.46,133.34,18.7476]
[1718899570097,30.8871051,133.46,133.33,0.51]
[1718899570407,30.8871051,133.46,133.33,20.17]
[1718899570408,0.1921822,133.46,133.33,20.17]
[1718899570699,0.1921822,133.46,133.31,7.5012]
[1718899570880,0.1921822,133.46,133.31,7.5009]
[1718899571196,0.1921822,133.46,133.29,6.0997]
[1718899571388,0.17,133.45,133.35,7.4987]
[1718899571705,20.1921822,133.46,133.32,18.7505]
[1718899571899,20.1921822,133.46,133.33,7.5]
[1718899572202,6.5687,133.45,133.27,30.046887]
[1718899572417,6.5687,133.45,133.29,7.5023]
[1718899572700,20.0,133.44,133.28,27.5026]
[1718899572901,33.59,133.43,133.25,400.7954]
[1718899573106,51.5687,133.42,133.25,15.0954]
[1718899573329,51.5687,133.42,133.18,242.6334]
[1718899573330,33.42,133.39,133.23,7.5057]
[1718899573483,0.17,133.38,133.2,40.4333]
[1718899573797,0.17,133.38,133.22,7.5061]
[1718899573798,6.5687,133.37,133.22,7.5061]
[1718899574174,0.17,133.36,133.18,242.6334]
[1718899574377,33.42,133.35,133.15,21.6647]
[1718899574599,33.42,133.3,133.14,7.5107]
[1718899574777,33.42,133.3,133.11,18.7801]
[1718899574778,45.17,133.29,133.12,7.5116]
[1718899574977,6.0155,133.28,133.11,30.081188]
[1718899575193,0.17,133.27,133.15,7.5102]
[1718899575377,0.17,133.27,133.1,16.2463]
[1718899575582,65.17,133.27,133.12,7.5115]
[1718899575887,20.17,133.27,133.13,7.5112]
[1718899576080,20.17,133.27,133.1,16.2463]
[1718899576081,20.17,133.27,133.12,7.5118]
[1718899576406,78.42,133.26,133.1,7.5129]
[1718899576721,0.17,133.25,133.12,7.5118]
[1718899577018,0.17,133.25,133.18,7.5081]
[1718899577182,6.0155,133.28,133.18,7.5085]
[1718899577385,6.0155,133.28,133.12,18.7791]
[1718899577581,20.0,133.27,133.18,7.5086]
[1718899577785,20.0,133.27,133.19,45.0]
[1718899577992,20.0,133.27,133.08,647.1169]
[1718899578299,33.42,133.26,133.08,18.7835]
[1718899578501,33.42,133.22,133.1,18.7827]
[1718899578700,0.17,133.21,133.1,18.7827]
[1718899578904,0.17,133.21,133.11,7.512]
[1718899579207,0.17,133.21,133.13,7.5111]
[1718899579527,20.0,133.27,133.05,22.63]
[1718899579700,20.0,133.27,133.08,56.05]
[1718899579907,20.0,133.27,133.14,18.777]
[1718899580110,20.0,133.27,133.08,56.05]
[1718899580111,6.0155,133.28,133.1,18.7827]
[1718899580431,6.0155,133.28,133.13,7.5112]
[1718899580735,6.0155,133.28,133.16,7.5092]
[1718899581020,6.0155,133.28,133.17,45.0]
[1718899581199,0.17,133.27,133.17,45.0]
[1718899581400,0.17,133.27,133.11,20.0]
[1718899581703,65.17,133.27,133.13,7.511]
[1718899582002,20.0,133.26,133.13,7.511]
[1718899582201,20.0,133.26,133.1,20.17]
[1718899582202,0.17,133.25,133.1,27.5127]
[1718899582720,0.17,133.25,133.1,7.5127]
[1718899582924,45.17,133.25,133.09,250.1469]
[1718899583104,6.3297,133.24,133.09,250.1469]
[1718899583305,33.42,133.22,133.07,7.5144]
[1718899583538,33.42,133.22,133.08,7.5142]
[1718899583704,0.17,133.21,133.09,7.5136]
[1718899583901,20.17,133.21,133.05,18.7897]
[1718899584196,33.42,133.18,133.03,8.1538098]
[1718899584419,20.17,133.17,133.03,0.6369098]
[1718899584609,20.17,133.17,133.04,7.5164]
[1718899584811,20.17,133.17,133.03,0.6369098]
[1718899585418,45.0,133.16,133.03,0.6369098]
[1718899585618,0.17,133.15,133.03,0.6369098]
[1718899585811,33.42,133.14,133.03,0.6369098]
[1718899586011,0.17,133.13,133.03,0.6369098]
[1718899586400,20.17,133.13,133.03,0.6369098]
[1718899588006,6.4777,133.12,133.03,0.6369098]
[1718899588206,0.17,133.11,133.03,0.6369098]
[1718899588631,6.4777,133.12,133.05,7.5156]
[1718899588925,6.4777,133.12,133.03,0.6369098]
[1718899589822,0.17,133.11,133.03,0.6369098]
[1718899590222,6.4777,133.12,133.04,7.5164]
[1718899590422,6.4777,133.12,133.03,0.6369098]
[1718899590636,6.4777,133.12,133.03,8.1534098]
[1718899590838,6.4777,133.12,133.03,0.6369098]
[1718899591424,6.4777,133.12,133.03,45.6369098]
[1718899591629,0.17,133.11,133.03,0.6369098]
[1718899591938,6.4777,133.12,133.03,8.1537098]
[1718899592438,6.4777,133.12,133.05,7.5157]
[1718899592617,6.4777,133.12,133.05,7.5154]
[1718899592948,6.4777,133.12,133.03,0.6369098]
[1718899593607,39.8977,133.12,133.03,0.6369098]
[1718899593812,20.0,133.11,133.03,0.6369098]
[1718899594339,0.17,133.1,133.03,0.6369098]
[1718899595870,33.42,133.08,133.03,0.6369098]
[1718899596009,51.4919,133.07,132.92,250.1563]
[1718899596214,20.0,133.06,132.93,7.5224]
[1718899596414,0.17,133.05,132.93,7.5224]
[1718899596628,0.17,133.05,132.92,7.523]
[1718899596830,0.17,133.05,132.89,19.640192]
[1718899597032,0.17,133.05,132.93,7.5223]
[1718899597236,0.17,133.05,132.92,7.5229]
[1718899597441,45.17,133.05,132.89,8.353492]
[1718899597627,45.17,133.05,132.9,7.5244]
[1718899597829,6.3922,133.03,132.89,0.829092]
[1718899598141,0.17,133.02,132.89,8.353792]
[1718899598344,45.17,133.02,132.89,8.353792]
[1718899598526,20.0,133.01,132.89,8.353792]
[1718899598731,0.17,133.0,132.89,0.829092]
[1718899599036,20.17,133.0,132.91,7.5236]
[1718899599224,0.17,133.0,132.89,8.353992]
[1718899599426,0.17,133.0,132.89,0.829092]
[1718899599628,0.17,133.01,132.89,0.829092]
[1718899600029,0.17,133.01,132.9,7.524]
[1718899600223,0.17,133.01,132.89,0.829092]
[1718899600841,0.17,133.01,132.89,8.353692]
[1718899601031,0.17,133.01,132.89,0.829092]
[1718899601233,0.17,133.01,132.9,7.5243]
[1718899601417,0.17,133.01,132.89,0.829092]
[1718899601620,0.17,133.01,132.9,7.5241]
[1718899601821,0.17,133.01,132.91,7.5238]
[1718899602023,0.17,133.01,132.9,7.5242]
[1718899602226,0.17,133.01,132.89,0.829092]
[1718899602541,39.501,133.0,132.89,0.829092]
[1718899602747,45.17,132.99,132.89,0.829092]
[1718899602941,65.17,132.99,132.89,0.829092]
[1718899603944,20.17,132.99,132.89,0.829092]
[1718899604323,20.0,132.99,132.89,0.829092]
[1718899604722,20.0,132.99,132.89,8.353892]
[1718899605046,20.0,132.99,132.89,0.829092]
[1718899605253,20.0,132.99,132.89,45.829092]
[1718899605439,20.0,132.99,132.89,0.829092]
[1718899606242,33.42,132.96,132.89,0.829092]
[1718899606663,20.0,132.95,132.89,0.829092]
[1718899606947,0.17,132.94,132.89,0.829092]
[1718899609159,20.0,132.95,132.89,0.829092]
[1718899609327,6.5187,132.94,132.89,0.829092]
[1718899609825,20.0,132.93,132.89,0.829092]
[1718899610449,0.17,132.92,132.89,0.829092]
[1718899611135,20.0,132.93,132.89,0.829092]
[1718899611454,6.5187,132.94,132.89,0.829092]
[1718899613253,0.17,132.93,132.89,0.829092]
[1718899613633,20.17,132.93,132.89,0.829092]
[1718899614246,6.5187,132.94,132.89,0.829092]
[1718899615949,6.1635,132.99,132.89,0.829092]
[1718899616331,6.1635,132.99,132.9,7.5242]
[1718899616532,6.1635,132.99,132.91,7.5237]
[1718899616740,6.1635,132.99,132.92,45.0]
[1718899616943,6.064,133.06,132.92,45.0]
[1718899617345,6.064,133.06,132.89,0.829092]
[1718899617546,33.42,133.03,132.89,0.829092]
[1718899618250,45.17,133.02,132.89,0.829092]
[1718899618468,20.0,133.01,132.89,0.829092]
[1718899618754,45.17,133.0,132.89,0.829092]
[1718899619133,20.0,132.99,132.89,0.829092]
[1718899619349,0.17,132.98,132.89,0.829092]
[1718899619666,20.0,132.99,132.89,8.353992]
[1718899619844,20.0,133.02,132.9,52.5243]
[1718899620572,20.0,133.02,132.9,45.0]
[1718899621059,20.0,133.02,132.89,0.829092]
[1718899621349,20.0,133.02,132.9,7.5244]
[1718899621644,20.0,133.02,132.91,45.0]
[1718899621849,20.0,133.02,132.89,0.829092]
[1718899621850,20.0,133.02,132.89,8.353892]
[1718899622046,20.0,133.02,132.9,45.0]
[1718899622248,6.3662,133.01,132.89,0.829092]
[1718899622630,20.0,133.0,132.89,8.353792]
[1718899622833,6.3662,133.01,132.92,7.5232]
[1718899623030,4.57645706,133.06,132.93,45.0]
[1718899623031,6.3662,133.05,132.93,45.0]
[1718899623230,6.3662,133.05,132.91,18.9783]
[1718899623451,6.3662,133.05,132.93,7.5225]
[1718899623634,6.3662,133.05,132.92,20.0]
[1718899623838,6.3662,133.05,132.93,45.0]
[1718899624048,33.42,133.03,132.89,0.829092]
[1718899624265,33.42,133.03,132.9,7.524]
[1718899624437,0.17,133.02,132.89,0.829092]
[1718899625140,0.17,133.03,132.89,0.829092]
[1718899625338,90.33,133.03,132.89,0.829092]
[1718899625550,33.42,133.0,132.89,0.829092]
[1718899625850,0.17,132.99,132.89,0.829092]
[1718899626054,33.42,132.96,132.89,0.829092]
[1718899626353,20.17,132.95,132.89,0.829092]
[1718899626654,6.3662,132.93,132.79,385.7]
[1718899626845,20.17,132.92,132.77,18.8292]
[1718899627039,20.17,132.92,132.76,259.432192]
[1718899627448,20.17,132.92,132.78,18.8278]
[1718899627641,20.17,132.92,132.81,7.5291]
[1718899627837,20.17,132.92,132.76,259.432192]
[1718899628242,53.59,132.92,132.76,259.432192]
[1718899628442,53.59,132.92,132.78,18.8278]
[1718899628643,53.59,132.92,132.8,7.5296]
[1718899628848,20.17,132.92,132.82,7.5285]
[1718899629037,20.17,132.92,132.76,282.062192]
[1718899629243,20.17,132.92,132.84,7.5275]
[1718899629444,6.3662,132.93,132.85,45.0]
[1718899629959,6.3662,132.93,132.83,7.5282]
[1718899630144,6.3662,132.93,132.84,52.5275]
[1718899630347,6.3662,132.93,132.85,7.5269]
[1718899630561,308.52,133.07,132.87,18.8146]
[1718899630562,6.5483,132.99,132.87,18.8146]
[1718899630758,6.5483,132.99,132.89,7.5245]
[1718899630963,6.5483,132.99,132.88,0.17]
[1718899631166,6.5483,132.99,132.88,65.51]
[1718899631351,6.5483,132.99,132.89,7.5248]
[1718899631680,6.5483,132.99,132.9,45.0]
[1718899631846,6.5483,132.99,132.88,65.0]
[1718899632037,6.5483,132.99,132.92,7.5232]
[1718899632268,6.5483,132.99,132.93,45.0]
[1718899632574,6.5483,132.99,132.92,7.5232]
[1718899632870,6.5483,132.99,132.85,264.4423]
[1718899632871,6.5483,132.99,132.85,265.6315]
[1718899633044,6.5483,132.99,132.84,7.5276]
[1718899633247,6.5483,132.99,132.83,7.5282]
[1718899633478,6.5483,132.99,132.82,7.5288]
[1718899633646,6.5483,132.99,132.83,20.0]
[1718899633979,20.17,132.98,132.87,7.5259]
[1718899634142,6.5483,132.99,132.9,7.5241]
[1718899634341,6.5483,132.99,132.9,7.5242]
[1718899634537,6.5483,132.99,132.86,6.2963]
[1718899634742,6.5483,132.99,132.87,20.0]
[1718899635045,6.5483,132.99,132.91,7.5235]
[1718899635246,6.5483,132.99,132.87,38.8152]
[1718899635454,6.5483,132.99,132.88,45.0]
[1718899635743,6.5483,132.99,132.9,7.5242]
[1718899635944,6.5483,132.99,132.91,45.0]
[1718899636266,6.5483,132.99,132.87,20.0]
[1718899636469,20.17,132.98,132.82,6.5189]
[1718899636647,20.17,132.98,132.83,20.0]
[1718899636956,20.17,132.98,132.9,7.5244]
[1718899637158,20.17,132.98,132.89,7.5249]
[1718899637551,20.17,132.98,132.88,7.5253]
[1718899638162,6.5483,132.99,132.89,45.0]
[1718899638362,6.5483,132.99,132.88,45.0]
[1718899638544,6.5483,132.99,132.89,20.17]
[1718899638861,6.5483,132.99,132.9,45.0]
[1718899639053,6.5483,132.99,132.9,52.5242]
[1718899639243,6.5483,132.99,132.9,52.5239]
[1718899640251,6.5483,132.99,132.9,45.0]
[1718899640484,0.17,132.98,132.9,45.0]
[1718899640772,6.5483,132.99,132.89,45.0]
[1718899640947,20.17,132.98,132.88,52.5255]
[1718899641149,20.17,132.98,132.88,45.0]
[1718899641553,20.17,132.98,132.83,7.5282]
[1718899641748,33.42,132.96,132.8,15.4243]
[1718899641968,20.17,132.95,132.8,22.954]
[1718899642152,20.17,132.95,132.8,7.53]
[1718899642153,6.4015,132.93,132.8,7.53]
[1718899642473,0.17,132.92,132.8,7.53]
[1718899642685,0.17,132.92,132.8,7.5297]
[1718899642871,0.17,132.92,132.79,7.5305]
[1718899643082,20.17,132.92,132.79,7.5305]
[1718899643450,20.17,132.92,132.76,15.7162]
[1718899643770,20.17,132.92,132.78,7.5311]
[1718899643970,20.17,132.92,132.79,7.5303]
[1718899644273,20.17,132.92,132.78,7.5309]
[1718899644871,53.59,132.92,132.77,7.5316]
[1718899645165,45.0,132.91,132.77,7.5316]
[1718899645351,6.6085,132.89,132.76,7.5323]
[1718899645553,6.6085,132.89,132.75,0.8718957]
[1718899645554,0.17,132.88,132.75,0.8718957]
[1718899645749,20.17,132.88,132.75,0.8718957]
[1718899646159,20.17,132.88,132.76,7.532]
[1718899646464,20.17,132.88,132.75,0.8718957]
[1718899647366,6.6085,132.86,132.75,0.8718957]
[1718899647776,20.17,132.85,132.75,0.8718957]
[1718899648573,20.17,132.85,132.75,8.4044957]
[1718899649073,6.6085,132.86,132.76,45.0]
[1718899649983,6.6085,132.86,132.78,7.5309]
[1718899650150,6.6085,132.86,132.79,45.0]
[1718899650349,6.6085,132.86,132.78,7.5308]
[1718899650566,6.6085,132.86,132.79,45.0]
[1718899651054,6.0948,132.99,132.83,7.5284]
[1718899651253,6.0948,132.99,132.85,7.5272]
[1718899651568,6.0948,132.99,132.86,45.0]
[1718899651569,20.0,132.98,132.86,45.0]
[1718899651756,20.0,132.98,132.84,45.0]
[1718899651957,20.0,132.98,132.84,52.5276]
[1718899652257,20.0,132.98,132.84,45.0]
[1718899652863,20.0,132.98,132.82,7.5287]
[1718899652864,20.0,132.98,132.83,45.0]
[1718899653171,20.0,132.98,132.78,0.34]
[1718899653172,33.42,132.96,132.76,15.7234]
[1718899653362,26.6428,132.95,132.78,20.17]
[1718899653574,26.6428,132.95,132.84,7.5274]
[1718899653881,26.6428,132.95,132.83,7.5281]
[1718899654080,0.17,132.94,132.79,7.5303]
[1718899654278,0.17,132.94,132.78,20.0]
[1718899654465,6.522,132.93,132.76,15.7234]
[1718899654778,6.522,132.93,132.79,7.5302]
[1718899654957,20.17,132.92,132.79,7.5302]